fUST/lending_fUST_20260608
["ID","MTS","AMOUNT","RATE_DAILY","PERIOD"]
[424429418,1780879757000,-500.0,0.00011037,2]
[424429416,1780879757000,-500.0,0.00011037,2]
[424429417,1780879757000,-500.0,0.00011037,2]
[424429421,1780879757000,-323.46967354,0.00011037,2]
[424429427,1780879758000,-500.0,0.00011037,2]
[424429428,1780879758000,-500.0,0.00011037,2]
[424429431,1780879758000,-500.0,0.00011037,2]
[424429429,1780879758000,-500.0,0.00011037,2]
[424429430,1780879758000,-500.0,0.00011037,2]
[424429432,1780879758000,-500.0,0.00011037,2]
[424429433,1780879758000,-500.0,0.00011037,2]
[424429434,1780879758000,-500.0,0.00011037,2]
[424429436,1780879758000,-500.0,0.00011037,2]
[424429435,1780879758000,-500.0,0.00011037,2]
[424429439,1780879758000,-300.0,0.00011611,2]
[424429440,1780879758000,-300.0,0.00011611,2]
[424429438,1780879758000,-600.0,0.00011611,2]
[424429442,1780879758000,-300.0,0.00011611,2]
[424429441,1780879758000,-300.0,0.00011611,2]
[424429443,1780879758000,-300.0,0.00011611,2]
[424429444,1780879758000,-300.0,0.00011611,2]
[424429445,1780879758000,-300.0,0.00011611,2]
[424429446,1780879758000,-300.0,0.00011611,2]
[424429447,1780879758000,-137.0050747,0.00011611,2]
[424429437,1780879758000,-300.0,0.00011037,2]
[424429448,1780879809000,-162.9949253,0.00011611,2]
[424429484,1780879832000,-1000.0,0.00013699,2]
[424429477,1780879832000,-156.0,0.00012578,2]
[424429486,1780879832000,-156.0,0.00016403,2]
[424429479,1780879832000,-355.2604984,0.00012678,2]
[424429482,1780879832000,-33.8556026,0.00012678,2]
[424429493,1780879832000,-500.0,0.00016437,2]
[424429488,1780879832000,-595.52855498,0.00016437,2]
[424429495,1780879832000,-500.0,0.00016438,2]
[424429490,1780879832000,-500.0,0.00016437,2]
[424429494,1780879832000,-1405.2529,0.00016438,2]
[424429496,1780879832000,-252.08505521,0.00016438,2]
[424429509,1780879832000,-39.6712407,0.00016438,2]
[424429506,1780879832000,-500.0,0.00016438,2]
[424429507,1780879832000,-500.0,0.00016438,2]
[424429492,1780879832000,-500.0,0.00016437,2]
[424429505,1780879832000,-500.0,0.00016438,2]
[424429504,1780879832000,-1235.38,0.00016438,2]
[424429503,1780879832000,-114.94875925,0.00016438,2]
[424429502,1780879832000,-132.96618554,0.00016438,2]
[424429508,1780879832000,-500.0,0.00016438,2]
[424429560,1780879838000,-746.5087593,0.00016438,2]
[424429562,1780879838000,-500.0,0.00016438,2]
[424429561,1780879838000,-648.54964929,0.00016438,2]
[424429564,1780879838000,-498.46270133,0.00016438,2]
[424429566,1780879838000,-500.0,0.00016438,2]
[424429565,1780879838000,-539.95,0.00016438,2]
[424429567,1780879838000,-500.0,0.00016438,2]
[424429563,1780879838000,-500.0,0.00016438,2]
[424429570,1780879838000,-500.0,0.00016438,2]
[424429573,1780879838000,-500.0,0.00016438,2]
[424429568,1780879838000,-500.0,0.00016438,2]
[424429571,1780879838000,-500.0,0.00016438,2]
[424429572,1780879838000,-1403.25,0.00016438,2]
[424429569,1780879838000,-500.0,0.00016438,2]
[424429575,1780879838000,-500.0,0.00016438,2]
[424429574,1780879838000,-645.22,0.00016438,2]
[424429617,1780879839000,-500.0,0.00016438,2]
[424429619,1780879839000,-1207.98426824,0.00016438,2]
[424429616,1780879839000,-794.18,0.00016438,2]
[424429610,1780879839000,-500.0,0.00016438,2]
[424429611,1780879839000,-1127.97,0.00016438,2]
[424429615,1780879839000,-668.33,0.00016438,2]
[424429613,1780879839000,-565.4,0.00016438,2]
[424429606,1780879839000,-500.0,0.00016438,2]
[424429614,1780879839000,-577.19,0.00016438,2]
[424429607,1780879839000,-500.0,0.00016438,2]
[424429620,1780879839000,-500.0,0.00016438,2]
[424429609,1780879839000,-500.0,0.00016438,2]
[424429623,1780879839000,-500.0,0.00016438,2]
[424429635,1780879839000,-500.0,0.00016438,2]
[424429622,1780879839000,-500.0,0.00016438,2]
[424429618,1780879839000,-13.27573176,0.00016438,2]
[424429624,1780879839000,-500.0,0.00016438,2]
[424429625,1780879839000,-1171.97,0.00016438,2]
[424429626,1780879839000,-17.2012296,0.00016438,2]
[424429627,1780879839000,-482.7987704,0.00016438,2]
[424429628,1780879839000,-1632.44,0.00016438,2]
[424429630,1780879839000,-862.69,0.00016438,2]
[424429629,1780879839000,-500.0,0.00016438,2]
[424429608,1780879839000,-646.08,0.00016438,2]
[424429637,1780879839000,-500.0,0.00016438,2]
[424429639,1780879839000,-500.0,0.00016438,2]
[424429636,1780879839000,-500.0,0.00016438,2]
[424429621,1780879839000,-500.0,0.00016438,2]
[424429605,1780879839000,-500.0,0.00016438,2]
[424429598,1780879839000,-2407.16,0.00016438,2]
[424429603,1780879839000,-500.0,0.00016438,2]
[424429576,1780879839000,-500.0,0.00016438,2]
[424429577,1780879839000,-504.09,0.00016438,2]
[424429578,1780879839000,-687.73,0.00016438,2]
[424429581,1780879839000,-958.0,0.00016438,2]
[424429579,1780879839000,-781.56,0.00016438,2]
[424429582,1780879839000,-500.0,0.00016438,2]
[424429580,1780879839000,-1152.52,0.00016438,2]
[424429585,1780879839000,-1164.47,0.00016438,2]
[424429587,1780879839000,-564.57,0.00016438,2]
[424429584,1780879839000,-865.91,0.00016438,2]
[424429586,1780879839000,-741.75,0.00016438,2]
[424429588,1780879839000,-500.0,0.00016438,2]
[424429583,1780879839000,-500.0,0.00016438,2]
[424429589,1780879839000,-500.0,0.00016438,2]
[424429591,1780879839000,-500.0,0.00016438,2]
[424429596,1780879839000,-500.0,0.00016438,2]
[424429602,1780879839000,-500.0,0.00016438,2]
[424429594,1780879839000,-500.0,0.00016438,2]
[424429592,1780879839000,-500.0,0.00016438,2]
[424429631,1780879839000,-500.0,0.00016438,2]
[424429595,1780879839000,-500.0,0.00016438,2]
[424429597,1780879839000,-500.0,0.00016438,2]
[424429590,1780879839000,-1200.84,0.00016438,2]
[424429593,1780879839000,-500.0,0.00016438,2]
[424429601,1780879839000,-500.0,0.00016438,2]
[424429599,1780879839000,-1230.88,0.00016438,2]
[424429600,1780879839000,-500.0,0.00016438,2]
[424429604,1780879839000,-500.0,0.00016438,2]
[424429632,1780879839000,-525.16,0.00016438,2]
[424429612,1780879839000,-500.0,0.00016438,2]
[424429638,1780879839000,-500.0,0.00016438,2]
[424429670,1780879839000,-5000.0,0.00016438,2]
[424429675,1780879839000,-500.0,0.00016438,2]
[424429674,1780879839000,-500.0,0.00016438,2]
[424429669,1780879839000,-1017.37,0.00016438,2]
[424429676,1780879839000,-500.0,0.00016438,2]
[424429677,1780879839000,-500.0,0.00016438,2]
[424429679,1780879839000,-500.0,0.00016438,2]
[424429681,1780879839000,-700.38,0.00016438,2]
[424429680,1780879839000,-500.0,0.00016438,2]
[424429682,1780879839000,-500.0,0.00016438,2]
[424429687,1780879839000,-508.98898352,0.00016438,2]
[424429684,1780879839000,-500.0,0.00016438,2]
[424429678,1780879839000,-1431.65,0.00016438,2]
[424429683,1780879839000,-506.75,0.00016438,2]
[424429685,1780879839000,-2222.35,0.00016438,2]
[424429688,1780879839000,-500.0,0.00016438,2]
[424429686,1780879839000,-1392.53,0.00016438,2]
[424429695,1780879839000,-500.0,0.00016438,2]
[424429689,1780879839000,-2677.97,0.00016438,2]
[424429696,1780879839000,-500.0,0.00016438,2]
[424429697,1780879839000,-1851.53,0.00016438,2]
[424429698,1780879839000,-1960.98,0.00016438,2]
[424429701,1780879839000,-1511.52,0.00016438,2]
[424429700,1780879839000,-526.43304465,0.00016438,2]
[424429699,1780879839000,-5126.46,0.00016438,2]
[424429693,1780879839000,-8284.48,0.00016438,2]
[424429694,1780879839000,-500.0,0.00016438,2]
[424429671,1780879839000,-568.3,0.00016438,2]
[424429673,1780879839000,-500.0,0.00016438,2]
[424429672,1780879839000,-766.28,0.00016438,2]
[424429668,1780879839000,-2648.95,0.00016438,2]
[424429634,1780879839000,-839.32,0.00016438,2]
[424429640,1780879839000,-500.0,0.00016438,2]
[424429642,1780879839000,-754.71,0.00016438,2]
[424429641,1780879839000,-500.0,0.00016438,2]
[424429646,1780879839000,-500.0,0.00016438,2]
[424429649,1780879839000,-500.0,0.00016438,2]
[424429643,1780879839000,-589.44,0.00016438,2]
[424429645,1780879839000,-500.0,0.00016438,2]
[424429644,1780879839000,-793.15,0.00016438,2]
[424429652,1780879839000,-4401.9287217,0.00016438,2]
[424429648,1780879839000,-500.0,0.00016438,2]
[424429647,1780879839000,-487.54881331,0.00016438,2]
[424429667,1780879839000,-517.66,0.00016438,2]
[424429650,1780879839000,-1839.23,0.00016438,2]
[424429651,1780879839000,-924.75,0.00016438,2]
[424429655,1780879839000,-500.0,0.00016438,2]
[424429666,1780879839000,-382.00611966,0.00016438,2]
[424429665,1780879839000,-1544.55,0.00016438,2]
[424429654,1780879839000,-1115.22,0.00016438,2]
[424429653,1780879839000,-30892.6512783,0.00016438,2]
[424429664,1780879839000,-500.0,0.00016438,2]
[424429691,1780879839000,-525.33,0.00016438,2]
[424429663,1780879839000,-701.09,0.00016438,2]
[424429662,1780879839000,-500.0,0.00016438,2]
[424429656,1780879839000,-500.0,0.00016438,2]
[424429660,1780879839000,-500.0,0.00016438,2]
[424429658,1780879839000,-500.0,0.00016438,2]
[424429661,1780879839000,-500.0,0.00016438,2]
[424429633,1780879839000,-500.0,0.00016438,2]
[424429705,1780879840000,-2966.08,0.00016438,2]
[424429702,1780879840000,-500.0,0.00016438,2]
[424429703,1780879840000,-500.0,0.00016438,2]
[424429704,1780879840000,-3422.68,0.00016438,2]
[424429706,1780879840000,-1995.72,0.00016438,2]
[424429710,1780879840000,-500.0,0.00016438,2]
[424429711,1780879840000,-3259.71670916,0.00016438,2]
[424429709,1780879840000,-1444.53,0.00016438,2]
[424429707,1780879840000,-500.0,0.00016438,2]
[424429708,1780879840000,-500.0,0.00016438,2]
[424429723,1780879841000,-781.69258513,0.00016438,2]
[424429721,1780879841000,-613.94690675,0.00016438,2]
[424429722,1780879841000,-135.40309325,0.00016438,2]
[424429720,1780879841000,-1002.95,0.00016438,2]
[424429719,1780879841000,-5668.60329084,0.00016438,2]
[424429725,1780879842000,-500.0,0.00016438,2]
[424429726,1780879842000,-500.0,0.00016438,2]
[424429728,1780879842000,-2536.69,0.00016438,2]
[424429729,1780879842000,-500.0,0.00016438,2]
[424429724,1780879842000,-809.86741487,0.00016438,2]
[424429731,1780879842000,-185.2683902,0.00016438,2]
[424429730,1780879842000,-1500.00163312,0.00016438,2]
[424429734,1780879842000,-288.46189372,0.00016438,2]
[424429727,1780879842000,-1716.11444316,0.00016438,2]
[424429732,1780879842000,-1644.67997668,0.00016438,2]
[424429733,1780879842000,-500.0,0.00016438,2]
[424429750,1780879844000,-134.02042586,0.00016438,2]
[424429749,1780879844000,-211.53810628,0.00016438,2]
[424429793,1780879846000,-1076.39520267,0.00016438,2]
[424429796,1780879988000,251.0,7.17e-05,2]
[424429797,1780880168000,-5000.0,8.088e-05,2]
[424429798,1780880221000,-251.0,8.17e-05,2]
[424429799,1780880275000,-251.0,9.17e-05,2]
[424429800,1780880328000,-251.0,0.0001017,2]
[424429801,1780880381000,-251.0,0.0001117,2]
[424429804,1780880435000,-260.00550678,0.0001217,2]
[424429805,1780880488000,-333.6893426,0.00015503,2]
[424429806,1780880541000,-500.0,0.00016435,2]
[424429807,1780880595000,-222.35745205,0.00016436,2]
[424429810,1780880648000,-500.0,0.0001626,2]
[424429813,1780880735000,-500.0,0.00016435,2]
[424429811,1780880735000,-155.65021644,0.00016435,2]
[424429812,1780880735000,-500.0,0.00016435,2]
[424429814,1780880735000,-471.07751533,0.00016435,2]
[424429818,1780880826000,-749.55946425,0.00015398,2]
[424429819,1780880948000,250.0,7.17e-05,2]
[424429820,1780880958000,-5000.0,8.088e-05,2]
[424429823,1780880958000,-250.0,0.0001017,2]
[424429821,1780880958000,-250.0,8.17e-05,2]
[424429824,1780880958000,-250.0,0.0001117,2]
[424429825,1780880958000,-13.61757351,0.0001217,2]
[424429822,1780880958000,-250.0,9.17e-05,2]
[424429826,1780881006000,-398.00017728,0.00011928,2]
[424429827,1780881020000,300.0,7.17e-05,2]
[424429870,1780881032000,-151.0,0.00016428,2]
[424429876,1780881032000,-500.0,0.00016437,2]
[424429862,1780881032000,-500.0,0.00014616,2]
[424429864,1780881032000,-495.49190884,0.00014616,2]
[424429866,1780881032000,-294.94409116,0.00014616,2]
[424429868,1780881032000,-151.0,0.00016428,2]
[424429860,1780881032000,-303.64273047,0.0001217,2]
[424429853,1780881032000,-300.0,0.0001017,2]
[424429856,1780881032000,-5000.0,0.00012048,2]
[424429848,1780881032000,-27.0,9.17e-05,2]
[424429846,1780881032000,-300.0,8.17e-05,2]
[424429854,1780881032000,-300.0,0.0001117,2]
[424429851,1780881032000,-273.0,9.17e-05,2]
[424429872,1780881032000,-208.19254296,0.00016428,2]
[424429858,1780881032000,-240.984174,0.0001217,2]
[424429878,1780881032000,-1777.3944,0.00016438,2]
[424429880,1780881032000,-471.11491934,0.00016438,2]
[424429908,1780881032000,-734.4,0.00016438,2]
[424429874,1780881032000,-500.0,0.00016437,2]
[424429913,1780881032000,-1036.69568593,0.00016438,2]
[424429910,1780881032000,-146.32924831,0.00016438,2]
[424429904,1780881032000,-500.0,0.00016438,2]
[424429907,1780881032000,-500.0,0.00016438,2]
[424429902,1780881032000,-527.41911207,0.00016438,2]
[424429884,1780881032000,-519.90189539,0.00016438,2]
[424429890,1780881032000,-541.75397298,0.00016438,2]
[424429885,1780881032000,-531.71079164,0.00016438,2]
[424429896,1780881032000,-500.0,0.00016438,2]
[424429900,1780881032000,-500.0,0.00016438,2]
[424429889,1780881032000,-508.13180387,0.00016438,2]
[424429894,1780881032000,-500.0,0.00016438,2]
[424429892,1780881032000,-500.0,0.00016438,2]
[424429882,1780881032000,-441.24792124,0.00016438,2]
[424429898,1780881032000,-524.57814776,0.00016438,2]
[424429996,1780881038000,-521.33122285,0.00016438,2]
[424429989,1780881038000,-516.26173928,0.00016438,2]
[424429991,1780881038000,-500.0,0.00016438,2]
[424429995,1780881038000,-500.0,0.00016438,2]
[424429993,1780881038000,-500.0,0.00016438,2]
[424429998,1780881038000,-500.0,0.00016438,2]
[424429986,1780881038000,-500.0,0.00016438,2]
[424429983,1780881038000,-500.0,0.00016438,2]
[424430000,1780881038000,-524.7750447,0.00016438,2]
[424430002,1780881038000,-412.19680338,0.00016438,2]
[424429981,1780881038000,-17.40506576,0.00016438,2]
[424430082,1780881039000,-500.0,0.00016438,2]
[424430080,1780881039000,-500.0,0.00016438,2]
[424430079,1780881039000,-500.0,0.00016438,2]
[424430076,1780881039000,-500.0,0.00016438,2]
[424430075,1780881039000,-500.0,0.00016438,2]
[424430071,1780881039000,-500.0,0.00016438,2]
[424430069,1780881039000,-564.88,0.00016438,2]
[424430067,1780881039000,-829.83,0.00016438,2]
[424430065,1780881039000,-543.15456686,0.00016438,2]
[424430055,1780881039000,-500.0,0.00016438,2]
[424430073,1780881039000,-723.27,0.00016438,2]
[424430086,1780881039000,-1171.64,0.00016438,2]
[424430084,1780881039000,-500.0,0.00016438,2]
[424430090,1780881039000,-1089.59,0.00016438,2]
[424430092,1780881039000,-520.26239895,0.00016438,2]
[424430094,1780881039000,-500.0,0.00016438,2]
[424430097,1780881039000,-500.0,0.00016438,2]
[424430098,1780881039000,-500.0,0.00016438,2]
[424430100,1780881039000,-500.0,0.00016438,2]
[424430102,1780881039000,-500.0,0.00016438,2]
[424430108,1780881039000,-500.0,0.00016438,2]
[424430104,1780881039000,-556.21562044,0.00016438,2]
[424430106,1780881039000,-500.0,0.00016438,2]
[424430112,1780881039000,-500.0,0.00016438,2]
[424430117,1780881039000,-565.45,0.00016438,2]
[424430061,1780881039000,-500.0,0.00016438,2]
[424430088,1780881039000,-534.41003332,0.00016438,2]
[424430063,1780881039000,-500.0,0.00016438,2]
[424430026,1780881039000,-529.84946372,0.00016438,2]
[424430057,1780881039000,-500.0,0.00016438,2]
[424430010,1780881039000,-518.66139825,0.00016438,2]
[424430011,1780881039000,-500.0,0.00016438,2]
[424430013,1780881039000,-500.0,0.00016438,2]
[424430015,1780881039000,-531.13864151,0.00016438,2]
[424430017,1780881039000,-573.98,0.00016438,2]
[424430004,1780881039000,-87.80319662,0.00016438,2]
[424430006,1780881039000,-522.77130686,0.00016438,2]
[424430008,1780881039000,-526.63649013,0.00016438,2]
[424430021,1780881039000,-570.78044428,0.00016438,2]
[424430023,1780881039000,-500.0,0.00016438,2]
[424430019,1780881039000,-500.0,0.00016438,2]
[424430024,1780881039000,-520.94826216,0.00016438,2]
[424430036,1780881039000,-500.0,0.00016438,2]
[424430042,1780881039000,-500.0,0.00016438,2]
[424430028,1780881039000,-500.0,0.00016438,2]
[424430110,1780881039000,-671.88,0.00016438,2]
[424430038,1780881039000,-524.54681446,0.00016438,2]
[424430030,1780881039000,-532.54450733,0.00016438,2]
[424430034,1780881039000,-500.0,0.00016438,2]
[424430032,1780881039000,-511.87849229,0.00016438,2]
[424430040,1780881039000,-500.0,0.00016438,2]
[424430044,1780881039000,-500.0,0.00016438,2]
[424430047,1780881039000,-500.0,0.00016438,2]
[424430050,1780881039000,-155.40532454,0.00016438,2]
[424430046,1780881039000,-500.0,0.00016438,2]
[424430051,1780881039000,-553.28408968,0.00016438,2]
[424430053,1780881039000,-484.18206693,0.00016438,2]
[424430059,1780881039000,-500.0,0.00016438,2]
[424430114,1780881039000,-500.0,0.00016438,2]
[424430115,1780881039000,-500.0,0.00016438,2]
[424430214,1780881039000,-500.0,0.00016438,2]
[424430194,1780881039000,-500.0,0.00016438,2]
[424430180,1780881039000,-1191.21,0.00016438,2]
[424430196,1780881039000,-500.0,0.00016438,2]
[424430198,1780881039000,-500.0,0.00016438,2]
[424430208,1780881039000,-507.05707484,0.00016438,2]
[424430212,1780881039000,-523.03302165,0.00016438,2]
[424430210,1780881039000,-500.0,0.00016438,2]
[424430202,1780881039000,-518.49195461,0.00016438,2]
[424430216,1780881039000,-548.91849553,0.00016438,2]
[424430204,1780881039000,-500.0,0.00016438,2]
[424430119,1780881039000,-39.43640225,0.00016438,2]
[424430200,1780881039000,-504.28111448,0.00016438,2]
[424430218,1780881039000,-500.0,0.00016438,2]
[424430220,1780881039000,-572.63637775,0.00016438,2]
[424430222,1780881039000,-509.62269642,0.00016438,2]
[424430224,1780881039000,-500.0,0.00016438,2]
[424430233,1780881039000,-1585.26,0.00016438,2]
[424430230,1780881039000,-520.55082213,0.00016438,2]
[424430226,1780881039000,-500.0,0.00016438,2]
[424430228,1780881039000,-500.0,0.00016438,2]
[424430232,1780881039000,-537.55027612,0.00016438,2]
[424430237,1780881039000,-826.74,0.00016438,2]
[424430239,1780881039000,-500.0,0.00016438,2]
[424430245,1780881039000,-500.0,0.00016438,2]
[424430235,1780881039000,-500.0,0.00016438,2]
[424430243,1780881039000,-610.95,0.00016438,2]
[424430241,1780881039000,-503.28,0.00016438,2]
[424430192,1780881039000,-781.92,0.00016438,2]
[424430182,1780881039000,-503.44,0.00016438,2]
[424430206,1780881039000,-500.0,0.00016438,2]
[424430178,1780881039000,-500.0,0.00016438,2]
[424430128,1780881039000,-500.0,0.00016438,2]
[424430126,1780881039000,-500.0,0.00016438,2]
[424430122,1780881039000,-460.56359775,0.00016438,2]
[424430124,1780881039000,-500.0,0.00016438,2]
[424430130,1780881039000,-506.55,0.00016438,2]
[424430133,1780881039000,-500.0,0.00016438,2]
[424430135,1780881039000,-530.23,0.00016438,2]
[424430139,1780881039000,-501.16826881,0.00016438,2]
[424430176,1780881039000,-640.48,0.00016438,2]
[424430137,1780881039000,-500.0,0.00016438,2]
[424430143,1780881039000,-639.99,0.00016438,2]
[424430141,1780881039000,-195.28859659,0.00016438,2]
[424430147,1780881039000,-500.0,0.00016438,2]
[424430149,1780881039000,-154.73756164,0.00016438,2]
[424430132,1780881039000,-500.0,0.00016438,2]
[424430151,1780881039000,-336.03897442,0.00016438,2]
[424430145,1780881039000,-500.0,0.00016438,2]
[424430188,1780881039000,-527.47735324,0.00016438,2]
[424430186,1780881039000,-500.0,0.00016438,2]
[424430184,1780881039000,-500.0,0.00016438,2]
[424430174,1780881039000,-541.84,0.00016438,2]
[424430164,1780881039000,-132.73649758,0.00016438,2]
[424430190,1780881039000,-500.0,0.00016438,2]
[424430158,1780881039000,-500.0,0.00016438,2]
[424430160,1780881039000,-500.0,0.00016438,2]
[424430157,1780881039000,-500.0,0.00016438,2]
[424430153,1780881039000,-518.15528918,0.00016438,2]
[424430155,1780881039000,-500.0,0.00016438,2]
[424430162,1780881039000,-367.26350242,0.00016438,2]
[424430345,1780881040000,-500.0,0.00016438,2]
[424430326,1780881040000,-524.89269533,0.00016438,2]
[424430343,1780881040000,-500.0,0.00016438,2]
[424430339,1780881040000,-2606.44,0.00016438,2]
[424430341,1780881040000,-517.02044567,0.00016438,2]
[424430310,1780881040000,-457.26225592,0.00016438,2]
[424430320,1780881040000,-755.19,0.00016438,2]
[424430247,1780881040000,-500.0,0.00016438,2]
[424430315,1780881040000,-500.0,0.00016438,2]
[424430308,1780881040000,-1762.59,0.00016438,2]
[424430337,1780881040000,-774.25,0.00016438,2]
[424430328,1780881040000,-532.43768077,0.00016438,2]
[424430330,1780881040000,-1501.03,0.00016438,2]
[424430322,1780881040000,-886.21,0.00016438,2]
[424430349,1780881040000,-517.46,0.00016438,2]
[424430334,1780881040000,-500.0,0.00016438,2]
[424430351,1780881040000,-500.0,0.00016438,2]
[424430347,1780881040000,-500.0,0.00016438,2]
[424430353,1780881040000,-561.57,0.00016438,2]
[424430352,1780881040000,-632.12908179,0.00016438,2]
[424430354,1780881040000,-500.0,0.00016438,2]
[424430355,1780881040000,-727.14,0.00016438,2]
[424430357,1780881040000,-500.0,0.00016438,2]
[424430364,1780881040000,-500.0,0.00016438,2]
[424430361,1780881040000,-500.0,0.00016438,2]
[424430363,1780881040000,-500.0,0.00016438,2]
[424430359,1780881040000,-692.03,0.00016438,2]
[424430332,1780881040000,-1392.84,0.00016438,2]
[424430304,1780881040000,-500.0,0.00016438,2]
[424430360,1780881040000,-500.0,0.00016438,2]
[424430312,1780881040000,-500.0,0.00016438,2]
[424430249,1780881040000,-500.0,0.00016438,2]
[424430251,1780881040000,-500.0,0.00016438,2]
[424430253,1780881040000,-500.0,0.00016438,2]
[424430260,1780881040000,-500.0,0.00016438,2]
[424430255,1780881040000,-500.0,0.00016438,2]
[424430257,1780881040000,-500.0,0.00016438,2]
[424430269,1780881040000,-500.0,0.00016438,2]
[424430264,1780881040000,-500.0,0.00016438,2]
[424430259,1780881040000,-1183.91,0.00016438,2]
[424430262,1780881040000,-500.0,0.00016438,2]
[424430266,1780881040000,-500.0,0.00016438,2]
[424430268,1780881040000,-500.0,0.00016438,2]
[424430271,1780881040000,-500.0,0.00016438,2]
[424430284,1780881040000,-510.72771815,0.00016438,2]
[424430275,1780881040000,-500.0,0.00016438,2]
[424430273,1780881040000,-507.37190061,0.00016438,2]
[424430277,1780881040000,-2453.7,0.00016438,2]
[424430282,1780881040000,-974.98,0.00016438,2]
[424430279,1780881040000,-500.0,0.00016438,2]
[424430292,1780881040000,-500.0,0.00016438,2]
[424430286,1780881040000,-500.0,0.00016438,2]
[424430290,1780881040000,-500.0,0.00016438,2]
[424430288,1780881040000,-500.0,0.00016438,2]
[424430296,1780881040000,-3215.79,0.00016438,2]
[424430298,1780881040000,-500.0,0.00016438,2]
[424430294,1780881040000,-500.0,0.00016438,2]
[424430319,1780881040000,-585.4,0.00016438,2]
[424430302,1780881040000,-451.68323728,0.00016438,2]
[424430324,1780881040000,-500.0,0.00016438,2]
[424430316,1780881040000,-500.0,0.00016438,2]
[424430356,1780881040000,-543.21664211,0.00016438,2]
[424430300,1780881040000,-33844.8,0.00016438,2]
[424430365,1780881040000,-500.0,0.00016438,2]
[424430403,1780881040000,-500.0,0.00016438,2]
[424430400,1780881040000,-500.0,0.00016438,2]
[424430404,1780881040000,-500.0,0.00016438,2]
[424430394,1780881040000,-509.48528584,0.00016438,2]
[424430401,1780881040000,-697.51,0.00016438,2]
[424430407,1780881040000,-464.74969957,0.00016438,2]
[424430405,1780881040000,-8556.3,0.00016438,2]
[424430408,1780881040000,-500.0,0.00016438,2]
[424430409,1780881040000,-1405.17,0.00016438,2]
[424430410,1780881040000,-510.9855087,0.00016438,2]
[424430412,1780881040000,-500.0,0.00016438,2]
[424430420,1780881040000,-297.73257333,0.00016438,2]
[424430419,1780881040000,-961.16,0.00016438,2]
[424430411,1780881040000,-659.07,0.00016438,2]
[424430415,1780881040000,-3280.07,0.00016438,2]
[424430413,1780881040000,-1104.5,0.00016438,2]
[424430418,1780881040000,-420.45388845,0.00016438,2]
[424430416,1780881040000,-511.35668223,0.00016438,2]
[424430414,1780881040000,-500.0,0.00016438,2]
[424430417,1780881040000,-766.89,0.00016438,2]
[424430421,1780881040000,-320.60742667,0.00016438,2]
[424430422,1780881040000,-500.0,0.00016438,2]
[424430424,1780881040000,-2628.25,0.00016438,2]
[424430423,1780881040000,-718.12,0.00016438,2]
[424430427,1780881040000,-1405.2529,0.00016712,2]
[424430428,1780881040000,-500.0,0.00016712,2]
[424430426,1780881040000,-1703.3373,0.00016438,2]
[424430425,1780881040000,-500.0,0.00016438,2]
[424430362,1780881040000,-1342.5,0.00016438,2]
[424430402,1780881040000,-275.57116663,0.00016438,2]
[424430406,1780881040000,-2854.02,0.00016438,2]
[424430306,1780881040000,-500.0,0.00016438,2]